Cogmind - Beta 12 @@@ ROGUE MODE // 2023.12.19 @ 22:31:33 Player: arkn Result: Destroyed by Alpha 7 with Multirail Performance ------------- Evolutions (7) 3500 Regions Visited (12) 2400 Robots Destroyed (207) 1035 Value Destroyed (8743) 8743 Prototype IDs (20) 400 Alien Tech Used (0) 0 Bonus (1048) 1048 TOTAL SCORE: 17126 Bonus ------- High Alert Combat Kills 877 Follower Combat Kills 247 Friendly Fire -76 Cogmind --------- Core Integrity 0/1300 Matter 125/300 Energy 100/100 System Corruption 35% Temperature Cool (0) Movement Core (700) Ox13 Location -3/Testing Parts ------- > --- POWER (2) -------- (None) > --- PROPULSION (6) --- (None) > --- UTILITY (9) ------ High-capacity Storage Unit > --- WEAPON (4) ------- (None) > --- INVENTORY (20) --- Energy Well (350) Improved Matter Compressor (25) Antimissile System Advanced Drone Bay (2/2) High-powered Shotgun Peak State ------------ > --- POWER ------------ Light Antimatter Reactor Light Antimatter Reactor > --- PROPULSION ------- Heavy Treads Heavy Treads Improved Heavy Siege Treads > --- UTILITY ---------- Advanced Power Amplifier Advanced Cryofiber Web Advanced Heat Sink High-capacity Storage Unit Improved Matter Compressor Advanced Signal Interpreter Improved Targeting Computer Improved Kinecellerator Advanced Transmission Jammer > --- WEAPON ----------- Heavy Gatling Laser Cooled Particle Cannon Advanced Plasma Cannon Railgun > --- INVENTORY -------- Medium Treads Energy Well Matter Compressor Improved Propulsion Shielding Layered Medium Armor Plating Improved Shock Absorption System Antimissile System Improved Dynamic Insulation System Advanced Drone Bay Gamma Rifle Heavy Disruptor Cannon KE Penetrator Hypervelocity Mass Driver Fusion Bomb Launcher Phasing Sabre Force Lance [Rating: 137] Favorites ----------- Power Light Antimatter Reactor Engine Light Angular Momentum Engine Power Core Enhanced Nuclear Core Reactor Light Antimatter Reactor Propulsion Improved Carbon-fiber Leg Treads Improved Medium Treads Leg Improved Carbon-fiber Leg Wheel Armored Huge Wheel Utility High-capacity Storage Unit Device Advanced Heat Sink Storage High-capacity Storage Unit Processor Improved Targeting Computer Protection Layered Light Armor Plating Weapon Magnetic Acceleration Cannon Energy Gun Force Rifle Energy Cannon Advanced Plasma Cannon Ballistic Gun Gauss Rifle Ballistic Cannon Magnetic Acceleration Cannon Launcher Proton Missile Launcher Impact Weapon Heavy Mace Slashing Weapon Phasing Sabre Piercing Weapon Force Lance Build | -11 -10 -9 -8 -7 -7 -7 -6 -5 -5 -4 -3 -3 ------- Run | Jun Mat Mat Mat Fac Low Low Fac Fac Ext Fac Res Tes Slots Evolved 14 | . . 2 2 2 . . 2 2 . 2 2 . Power 1 | . . . . . . . . 1 . . . . Propulsion 4 | . . 2 . . . . . . . . 2 . Utility 7 | . . . 2 2 . . . 1 . 2 . . Weapon 2 | . . . . . . . 2 . . . . . Parts Attached 268 | . 20 25 50 24 4 1 60 7 16 22 20 19 Power 25 | . 1 4 2 3 . . 3 1 3 4 3 1 Engine 11 | . 1 4 2 1 . . 2 1 . . . . Core 6 | . . . . 2 . . 1 . 3 . . . Reactor 8 | . . . . . . . . . . 4 3 1 Propulsion 44 | . 5 6 5 . . . 15 . 3 1 6 3 Treads 12 | . . . . . . . 6 . 1 . 3 2 Leg 21 | . 5 3 5 . . . 8 . . . . . Wheel 11 | . . 3 . . . . 1 . 2 1 3 1 Hover . | . . . . . . . . . . . . . Flight . | . . . . . . . . . . . . . Utility 88 | . 4 4 19 5 1 . 21 3 7 9 10 5 Device 42 | . 1 1 7 4 1 . 8 2 5 5 6 2 Storage 15 | . 2 1 5 . . . 4 . . 1 2 . Processor 8 | . 1 . 3 . . . . 1 . 1 1 1 Hackware . | . . . . . . . . . . . . . Protection 23 | . . 2 4 1 . . 9 . 2 2 1 2 Artifact . | . . . . . . . . . . . . . Weapon 111 | . 10 11 24 16 3 1 21 3 3 8 1 10 Energy Gun 15 | . 2 3 4 . . . 4 . . . 1 1 Energy Cannon 21 | . 1 1 9 4 . . 1 1 1 1 . 2 Ballistic Gun 28 | . 4 3 3 4 2 1 2 1 1 5 . 2 Ballistic Cannon 16 | . 2 2 . 2 . . 8 . . 1 . 1 Launcher 9 | . 1 . 1 2 1 . 1 1 1 . . 1 Special Weapon . | . . . . . . . . . . . . . Impact Weapon 1 | . . . 1 . . . . . . . . . Slashing Weapon 20 | . . 2 6 4 . . 5 . . 1 . 2 Piercing Weapon 1 | . . . . . . . . . . . . 1 Special Melee Weapon . | . . . . . . . . . . . . . Unidentified Prototypes 20 | . . 4 4 4 . . 2 . . . 2 4 Corrupted Parts 5 | . . . 1 . . . 1 . 1 . . 2 System Corruption 31 | . . . 1 . . . 4 . 9 . . 17 Parts Lost 93 | . 1 3 5 . . . 23 3 10 9 4 35 Power 7 | . . . . . . . 3 . 1 . . 3 Propulsion 17 | . 1 2 . . . . 4 1 2 1 1 5 Utility 41 | . . 1 2 . . . 9 1 6 5 3 14 Weapon 28 | . . . 3 . . . 7 1 1 3 . 13 Highest Loss Streak 23 | . 1 1 3 . . . 9 2 4 5 4 23 To Critical Strikes 5 | . . . . . . . . . . . . 5 Average Slot Usage (%) 91 | . 99 98 97 98 100 98 86 93 90 84 84 65 Engine 4 | . 14 11 9 6 . . 2 3 1 . . . Core 2 | . . . . . 7 7 3 5 7 1 . . Reactor 1 | . . . . . . . . . . 8 9 4 Treads 4 | . . . . . . . 10 20 15 . 2 11 Leg 15 | . 28 32 14 30 30 30 13 . . . . . Wheel 5 | . . 10 21 . . . . . 1 9 11 . Device 12 | . 12 . 10 13 15 15 5 17 23 27 22 15 Storage 8 | . 14 11 9 7 7 7 9 11 5 5 4 4 Processor 6 | . . 8 5 15 15 15 3 4 4 4 7 11 Protection 7 | . . 1 9 7 7 7 17 5 4 5 5 . Energy Gun 3 | . 13 3 3 . . . 4 3 . . 2 4 Energy Cannon 4 | . . 7 10 4 . . . 2 5 5 9 2 Ballistic Gun 3 | . 7 1 1 3 6 5 . 2 5 6 4 2 Ballistic Cannon 5 | . 6 9 . 1 7 7 9 7 5 3 . 1 Slashing Weapon 1 | . . . 2 4 . . 2 . . 3 1 . Naked Turns . | . . . . . . . . . . . . . Heaviest Build 117 | 13 33 41 73 75 74 71 108 98 115 115 117 107 Greatest Support 215 | 20 26 52 72 72 72 72 120 120 113 56 215 215 Greatest Overweight (x) 4 | . 1 1 2 1 1 . 4 1 3 2 2 2 Average Overweight (x) . | . . . . . . . . . 1 1 . . Largest Inventory Capacity 20 | . 15 15 20 20 20 20 20 20 20 20 20 20 Average Capacity 18 | . 12 15 19 20 20 20 20 20 20 20 20 20 Most Carried 20 | . 15 15 20 20 20 20 20 17 20 20 20 19 Average Carried 17 | . 11 14 18 19 19 20 18 15 17 19 18 16 Final Capacity 20 | 8 15 15 20 20 20 20 20 20 20 20 20 20 Final Carried 20 | 6 15 15 19 20 20 20 18 15 16 20 18 6 Class Distribution -------------------- 60% | Mutant 13% | Tank 7% | Scavenger-Tank 7% | Scavenger-Mutant 5% | Scavenger-Gunner 5% | Gunner Dominant Class ---------------- Mutant | -10/Materials Mutant | -9/Materials Mutant | -8/Materials Mutant | -7/Factory Mutant | -7/Lower Caves Mutant | -7/Lower Caves Tank | -6/Factory Gunner | -5/Factory Scavenger-Mutant | -5/Extension Scavenger-Tank | -4/Factory Gunner | -3/Research Scavenger-Gunner | -3/Testing Resources | -11 -10 -9 -8 -7 -7 -7 -6 -5 -5 -4 -3 -3 ----------- Run | Jun Mat Mat Mat Fac Low Low Fac Fac Ext Fac Res Tes Matter Collected 6475 | 195 186 848 479 378 138 5 2086 308 504 756 106 486 Remotely 587 | . . . . . . . . . . 587 . . Salvage Created 9042 | . 229 738 1244 410 35 . 2072 390 982 1394 713 835 Parts 425 | . 19 51 55 26 3 3 103 19 41 44 32 29 Haulers Intercepted 12 | . . 4 4 1 . . 1 1 . 1 . . Recyclers Shooed 11 | . . . 2 . . . 3 1 1 2 2 . Parts Field Recycled . | . . . . . . . . . . . . . Retrieved Matter . | . . . . . . . . . . . . . Parts Self-Destructed 2 | . . . . . 1 1 . . . . . . Prevented . | . . . . . . . . . . . . . Kills | -11 -10 -9 -8 -7 -7 -7 -6 -5 -5 -4 -3 -3 ------- Run | Jun Mat Mat Mat Fac Low Low Fac Fac Ext Fac Res Tes Combat Hostiles Destroyed 160 | . 11 15 19 7 3 1 41 8 16 15 10 14 Melee 6 | . . . . 1 . . 4 . . . . 1 Guns 39 | . 6 4 5 2 . . 6 3 . 3 4 6 Cannons 72 | . 2 11 9 4 . 1 21 2 6 7 6 3 AOE 34 | . 3 . 1 . 3 . 10 3 8 3 . 3 Classes Destroyed 20 | . 3 5 2 1 . 1 4 . 3 1 . . Worker 11 | . . 1 . 1 . . 5 1 . 1 1 1 Builder 5 | . . . 1 1 . . 2 . . 1 . . Tunneler 3 | . . . . . . . 1 1 . 1 . . Hauler 12 | . . 4 4 1 . . 1 1 . 1 . . Recycler 7 | . . . 1 . . . 2 . 1 2 . 1 Carrier 1 | . . . . . . . . . . 1 . . Operator 2 | . . 1 . 1 . . . . . . . . Watcher 15 | . 1 2 2 3 . . 5 1 1 . . . Swarmer 30 | . 8 3 3 4 3 . 3 . 3 . . 3 Grunt 63 | . 3 7 12 1 . . 16 5 4 6 2 7 Duelist 4 | . . 2 . . . . 1 . . 1 . . Sentry 18 | . . 3 4 . . . 4 1 4 . 2 . Specialist 1 | . . . . . . . . . 1 . . . Hunter 12 | . . . . . . . 3 2 1 3 . 3 Programmer 17 | . . . . 2 . . 4 . . 5 6 . Heavy 1 | . . . . . . . 1 . . . . . Behemoth 1 | . . . . . . . . . 1 . . . Protovariant Y 1 | . . . . . . . . . . . . 1 Thief 1 | . . . . . . 1 . . . . . . Assembled 9 | . . . . . . . 9 . . . . . Thug 1 | . . . . . . . . . 1 . . . Savage 1 | . . . . . . . . . 1 . . . Best Kill Streak 10 | . 3 3 5 3 3 1 10 5 5 7 3 7 Combat Bots Only 9 | . 3 3 4 3 3 1 9 4 5 6 3 6 Max Kills in Single Turn 4 | . 3 1 2 1 3 1 2 2 2 4 1 3 Gunslinging . | . . . . . . . . . . . . . Exploded 3 | . 3 . 1 . 3 . 2 1 2 3 . 2 Melee 1 | . . . . 1 . . 1 . . . . 1 Uniques/NPCs Destroyed . | . . . . . . . . . . . . . Combat | -11 -10 -9 -8 -7 -7 -7 -6 -5 -5 -4 -3 -3 -------- Run | Jun Mat Mat Mat Fac Low Low Fac Fac Ext Fac Res Tes Damage Taken 18660 | . 438 686 1275 343 75 . 5002 539 1805 1289 1601 5607 Core 2259 | . 106 39 162 . 13 . 322 20 202 81 148 1166 Absorbed by Shields 11 | . . . . . . . . . 11 . . . Reduced by Siege Mode 83 | . . . . . . . . . . . . 83 Redirected to Shielding 204 | . . . . . . . . . . . 102 102 Regen/Repaired (Parts) 24 | . . 24 . . . . . . . . . . Core Remaining (%) 80 | 100 57 90 70 . . 98 62 . 77 92 . . Volleys Fired 474 | . 34 58 66 32 2 3 91 20 39 50 34 45 Largest 4 | . 2 2 2 2 1 1 3 4 4 4 4 4 Hottest 303 | . 85 95 131 99 39 48 193 253 225 215 263 303 Shots Fired 1099 | . 63 116 129 52 2 3 211 52 90 164 121 96 Gun 408 | . 50 22 40 23 . . 48 19 25 78 51 52 Cannon 652 | . 12 94 87 29 . 3 156 28 50 86 70 37 Launcher 39 | . 1 . 2 . 2 . 7 5 15 . . 7 Special . | . . . . . . . . . . . . . Kinetic 546 | . 32 58 5 33 . 3 147 28 50 113 34 43 Thermal 385 | . 30 45 52 8 . . 32 19 25 51 87 36 Explosive 27 | . 1 . 2 . 2 . 7 5 3 . . 7 Electromagnetic 141 | . . 13 70 11 . . 25 . 12 . . 10 Robot Hit Streak 19 | . 6 11 19 15 1 2 9 11 14 17 16 15 Robot Miss Streak 6 | . 3 4 6 3 1 1 6 2 3 4 5 4 Penetration Max 2 | . . . . . . . . 1 1 2 1 1 Secondary Targets . | . . . . . . . . . . . . . Shots Hit Robots 730 | . 30 76 98 42 1 2 133 34 59 90 79 86 Core Hits 378 | . 15 33 43 15 3 1 89 23 35 34 28 59 Critical Kills 15 | . 1 . 1 . . . 1 . 2 7 . 3 Critical Parts Destroyed 15 | . . . . 1 . . . . 1 8 . 5 Critical Strikes 55 | . 1 1 1 5 . . 11 1 7 15 . 13 Meltdown 7 | . . . 1 . . . . . 2 4 . . Destroy 27 | . 1 . . 1 . . 1 . 4 11 . 9 Blast 16 | . . 1 . 3 . . 10 1 1 . . . Corrupt 1 | . . . . . . . . . . . . 1 Sever 4 | . . . . 1 . . . . . . . 3 Melee Attacks 83 | . . 2 14 15 . . 22 . . 12 4 14 Impact . | . . . . . . . . . . . . . Slashing 81 | . . 2 14 15 . . 22 . . 12 4 12 Piercing 2 | . . . . . . . . . . . . 2 Sneak Attacks 10 | . . . 1 2 . . 6 . . . . 1 Combat Hostiles . | . . . . . . . . . . . . . Follow-up Attacks 1 | . . . . . . . . . . . . 1 Damage Inflicted 24819 | . 538 1383 2484 1427 204 64 5805 1799 2394 3126 2497 3098 Guns 5637 | . 287 284 404 406 . . 654 278 172 968 1100 1084 Cannons 11546 | . 115 1098 1609 695 . 64 3003 691 1112 1373 1378 408 Explosions 5233 | . 131 . 309 86 204 . 832 830 1091 785 . 965 Melee 2265 | . . . 155 204 . . 1272 . . . . 634 Ramming 138 | . 5 1 7 36 . . 44 . 19 . 19 7 Kinetic 8361 | . 202 663 33 702 . 64 2851 649 693 1350 671 483 Thermal 7932 | . 200 544 865 250 . . 735 320 657 1776 1807 778 Explosive 3459 | . 131 . 145 . 204 . 584 830 600 . . 965 Electromagnetic 2664 | . . 175 1279 235 . . 319 . 425 . . 231 Impact . | . . . . . . . . . . . . . Slashing 2124 | . . . 155 204 . . 1272 . . . . 493 Piercing 141 | . . . . . . . . . . . . 141 Highest Corruption 35 | . 2 1 2 1 1 1 10 . 9 1 18 35 Average Corruption 5 | . 2 1 1 1 1 1 4 . 9 1 15 20 Corruption Purged . | . . . . . . . . . . . . . Corruption Blocked . | . . . . . . . . . . . . . Effects 140 | . 8 3 9 1 3 1 63 . 2 3 25 22 Message Errors 28 | . 1 . 1 . 1 1 12 . . 1 7 4 Matter Fused 40 | . 2 1 3 1 2 . 22 . 1 . 5 3 Heat Flow Errors 13 | . 2 . . . . . 4 . . 1 1 5 Energy Discharges 16 | . . . 1 . . . 10 . 1 . 3 1 Parts Rejected 7 | . 1 1 . . . . 3 . . . 1 1 Parts Fused 1 | . . . . . . . 1 . . . . . Data Loss (minor) 18 | . 2 . 2 . . . 7 . . 1 2 4 Data Loss (major) 3 | . . 1 . . . . . . . . 1 1 Misfires 6 | . . . . . . . 2 . . . 3 1 Alerts 3 | . . . 1 . . . 2 . . . . . Weapon Failures 5 | . . . 1 . . . . . . . 2 2 Overload Shots . | . . . . . . . . . . . . . Overflow Damage 863 | . . . 7 29 . . 571 21 28 151 20 36 Projectiles 252 | . . . 2 28 . . 125 14 . 63 20 . Explosions 225 | . . . 5 . . . 61 7 28 88 . 36 Melee 386 | . . . . 1 . . 385 . . . . . Knockbacks 54 | . 1 5 . 2 . . 34 1 2 8 . 1 Impact 3 | . . . . 1 . . 2 . . . . . Kinetic 44 | . 1 4 . 1 . . 28 1 2 6 . 1 Secondary 7 | . . 1 . . . . 4 . . 2 . . Self-Inflicted Damage 1017 | . 14 . 135 . 46 . 327 . 150 163 9 173 Shots 18 | . 1 . 3 . 1 . 4 . 4 2 . 3 Rammed 9 | . . . 1 . . . 3 . 1 . 1 3 Targets Rammed 18 | . 2 1 1 3 . . 6 . 1 . 1 3 Kicked 8 | . 2 1 . 3 . . 2 . . . . . Crushed 1 | . . . . . . . 1 . . . . . Highest Temperature 781 | . 215 210 468 211 . 12 462 111 283 154 632 781 Average Temperature 116 | . 48 53 86 41 . 7 126 47 91 18 204 324 Received Heat Transfer 2756 | . 90 153 612 18 . . 796 90 360 69 57 511 Effects 39 | . . . 4 . . . 9 . 1 . 5 20 Shutdowns 7 | . . . 2 . . . 3 . . . 1 1 Energy Bleed 4 | . . . 1 . . . . . . . . 3 Interference 9 | . . . . . . . 2 . 1 . 2 4 Matter Decay 5 | . . . 1 . . . . . . . . 4 Short Circuit 2 | . . . . . . . 1 . . . 1 . Damage (minor) 2 | . . . . . . . . . . . . 2 Damage (major) 9 | . . . . . . . 3 . . . 1 5 Damage (core) 1 | . . . . . . . . . . . . 1 Siege Activations 1 | . . . . . . . . . . . . 1 Total Turns 10 | . . . . . . . . . . . . 10 Longest Duration 10 | . . . . . . . . . . . . 10 Robots Corrupted 5 | . . . 3 . . . . . 1 . . 1 Combat Hostiles 4 | . . . 3 . . . . . . . . 1 Parts Fried 9 | . . 1 4 2 . . 1 . . . . 1 Impact Corruptions 1 | . . . . 1 . . . . . . . . Robots Melted 7 | . . . 1 . . . . . 2 4 . . Combat Hostiles 5 | . . . 1 . . . . . 2 2 . . Parts Melted 27 | . 2 2 2 . . . . . 3 9 7 2 Heat Transferred 12112 | . 592 1147 1619 322 . . 890 496 950 1887 2451 1758 Parts Sabotaged . | . . . . . . . . . . . . . Parts Stolen 1 | . . . . . . 1 . . . . . . Parts Stripped . | . . . . . . . . . . . . . Power Chain Reactions 5 | . . . 3 1 . . . . 1 . . . Missiles Intercepted . | . . . . . . . . . . . . . Alert | -11 -10 -9 -8 -7 -7 -7 -6 -5 -5 -4 -3 -3 ------- Run | Jun Mat Mat Mat Fac Low Low Fac Fac Ext Fac Res Tes Peak Influence 837 | . 164 278 505 380 . . 598 705 692 837 516 330 Initial 366 | . . 29 117 219 . . 35 292 345 308 366 225 Average 273 | . 55 159 351 239 . . 151 475 530 571 392 203 Maximum Alert Level 3 | . . 1 2 1 . . 2 3 2 3 2 1 Low Security (%) 38 | . 100 73 12 16 . . 67 . . . . 19 Level 1 38 | . . 26 44 83 . . 28 44 10 29 66 80 Level 2 21 | . . . 43 . . . 3 23 89 53 33 . Level 3 2 | . . . . . . . . 31 . 16 . . Level 4 . | . . . . . . . . . . . . . Level 5 . | . . . . . . . . . . . . . High Security . | . . . . . . . . . . . . . Max Security . | . . . . . . . . . . . . . Squads Dispatched 45 | . 1 2 5 4 . . 12 1 3 9 5 3 Investigation 12 | . . 2 2 . . . 1 . 1 4 1 1 Extermination 12 | . . . . 2 . . 5 . . 2 3 . Reinforcement 16 | . 1 . 3 2 . . 6 1 1 1 1 . Assault 4 | . . . . . . . . . 1 2 . 1 Garrison 1 | . . . . . . . . . . . . 1 Intercept . | . . . . . . . . . . . . . Searches Triggered . | . . . . . . . . . . . . . Construction Impeded 2 | . . . 2 . . . . . . . . . Haulers Reinforced 3 | . . . . 1 . . . 1 . 1 . . Active Scanning Responses . | . . . . . . . . . . . . . Cargo Convoy Interrupts . | . . . . . . . . . . . . . Stealth | -11 -10 -9 -8 -7 -7 -7 -6 -5 -5 -4 -3 -3 --------- Run | Jun Mat Mat Mat Fac Low Low Fac Fac Ext Fac Res Tes Distress Signals 7 | . 1 . 1 1 . . 3 . 1 . . . Communications Jammed 46 | . . . . . . . . . 23 2 21 . Distress Signals 46 | . . . . . . . . . 23 2 21 . Times Spotted 247 | . 26 22 32 18 3 1 49 9 28 21 16 22 Peak Tracking Total 8 | . 4 3 3 5 3 1 7 4 5 6 3 8 Tactical Retreats 19 | . 3 1 3 5 . . 4 . 2 1 . . Traps | -11 -10 -9 -8 -7 -7 -7 -6 -5 -5 -4 -3 -3 ------- Run | Jun Mat Mat Mat Fac Low Low Fac Fac Ext Fac Res Tes Traps Triggered 10 | . 4 . 1 2 . . 1 . 1 1 . . Indirectly . | . . . . . . . . . . . . . Trap Hack Attempts . | . . . . . . . . . . . . . Triggered . | . . . . . . . . . . . . . Disarmed . | . . . . . . . . . . . . . Reprogrammed . | . . . . . . . . . . . . . Reused . | . . . . . . . . . . . . . Traps Extracted . | . . . . . . . . . . . . . Installed . | . . . . . . . . . . . . . Triggered 3 | . . . . 1 . 2 . . . . . . Machines | -11 -10 -9 -8 -7 -7 -7 -6 -5 -5 -4 -3 -3 ---------- Run | Jun Mat Mat Mat Fac Low Low Fac Fac Ext Fac Res Tes Machines Disabled 41 | . . 2 4 4 . . 11 5 4 6 3 2 Max in Single Turn 6 | . . 1 1 2 . . 6 5 4 4 1 1 Garrison Access 3 | . . . . 1 . . . . . 1 . 1 Energy Cycler 3 | . . . . . . . . . 3 . . . Machines Repaired . | . . . . . . . . . . . . . Machines Sabotaged . | . . . . . . . . . . . . . Overloaded Fab Kills . | . . . . . . . . . . . . . Hacking | -11 -10 -9 -8 -7 -7 -7 -6 -5 -5 -4 -3 -3 --------- Run | Jun Mat Mat Mat Fac Low Low Fac Fac Ext Fac Res Tes Machines Accessed 29 | . 4 6 2 2 . . 3 1 2 6 2 1 Terminals 26 | . 4 5 2 1 . . 3 1 2 6 2 . Fabricators . | . . . . . . . . . . . . . Repair Stations 1 | . . 1 . . . . . . . . . . Recycling Units . | . . . . . . . . . . . . . Scanalyzers . | . . . . . . . . . . . . . Garrison Access 2 | . . . . 1 . . . . . . . 1 Total Hacks 81 | . 14 23 7 4 . . 6 1 4 17 3 2 Successful 42 | . 9 15 5 2 . . 3 1 1 6 . . Failed 39 | . 5 8 2 2 . . 3 . 3 11 3 2 Catastrophic 11 | . . 1 . 1 . . 2 . 1 3 2 1 Database Lockouts . | . . . . . . . . . . . . . Manual 61 | . 13 20 7 3 . . 6 . . 12 . . Terminals 76 | . 14 21 7 3 . . 6 1 4 17 3 . Fabricators . | . . . . . . . . . . . . . Repair Stations 2 | . . 2 . . . . . . . . . . Recycling Units . | . . . . . . . . . . . . . Scanalyzers . | . . . . . . . . . . . . . Garrison Access 3 | . . . . 1 . . . . . . . 2 Terminal Hacks 16 | . 4 4 1 . . . . 1 1 5 . . Record 1 | . . . . . . . . . . 1 . . Open Door 2 | . . . . . . . . 1 1 . . . Terminal Index 4 | . 1 1 1 . . . . . . 1 . . Patrol Status 1 | . . 1 . . . . . . . . . . Hauler Manifests 2 | . 1 1 . . . . . . . . . . Zone Layout 6 | . 2 1 . . . . . . . 3 . . Fabricator Hacks . | . . . . . . . . . . . . . Repair Station Hacks 2 | . . 2 . . . . . . . . . . Scan Component 1 | . . 1 . . . . . . . . . . Repair 1 | . . 1 . . . . . . . . . . Recycling Unit Hacks . | . . . . . . . . . . . . . Scanalyzer . | . . . . . . . . . . . . . Garrison Access Hacks 1 | . . . . 1 . . . . . . . . Seal Access 1 | . . . . 1 . . . . . . . . Unauthorized Hacks 22 | . 4 9 4 1 . . 3 . . 1 . . Terminals 22 | . 4 9 4 1 . . 3 . . 1 . . Track 7 | . 1 3 2 . . . 1 . . . . . Assimilate 2 | . 1 1 . . . . . . . . . . Botnet 13 | . 2 5 2 1 . . 2 . . 1 . . Fabricators . | . . . . . . . . . . . . . Repair Stations . | . . . . . . . . . . . . . Recycling Units . | . . . . . . . . . . . . . Scanalyzers . | . . . . . . . . . . . . . Garrison Access . | . . . . . . . . . . . . . Data Cores Recovered 2 | . . 1 . 1 . . . . . . . . Used 1 | . . . . 1 . . . . . . . . Hacking Detections 26 | . 4 5 2 1 . . 3 . 2 6 2 1 Full Trace Events 13 | . . 3 2 . . . 1 . 1 4 1 1 Feedback Events 2 | . . 1 1 . . . . . . . . . Corruption 2 | . . 1 1 . . . . . . . . . Feedback Blocked . | . . . . . . . . . . . . . Robot Schematics Acquired . | . . . . . . . . . . . . . Robots Built . | . . . . . . . . . . . . . Authchips . | . . . . . . . . . . . . . Time . | . . . . . . . . . . . . . Total Robot Build Rating . | . . . . . . . . . . . . . Part Schematics Acquired . | . . . . . . . . . . . . . Parts Built . | . . . . . . . . . . . . . Authchips . | . . . . . . . . . . . . . Time . | . . . . . . . . . . . . . Total Part Build Rating . | . . . . . . . . . . . . . Parts Repaired 1 | . . 1 . . . . . . . . . . Time 38 | . . 38 . . . . . . . . . . Parts Recycled . | . . . . . . . . . . . . . Recycled Matter . | . . . . . . . . . . . . . Retrieved Matter . | . . . . . . . . . . . . . Retrieved Components . | . . . . . . . . . . . . . Parts Scanalyzed . | . . . . . . . . . . . . . Part Schematics Acquired . | . . . . . . . . . . . . . Parts Damaged . | . . . . . . . . . . . . . Bothacking | -11 -10 -9 -8 -7 -7 -7 -6 -5 -5 -4 -3 -3 ------------ Run | Jun Mat Mat Mat Fac Low Low Fac Fac Ext Fac Res Tes Used RIF Installer . | . . . . . . . . . . . . . Robots Hacked . | . . . . . . . . . . . . . Non-combat . | . . . . . . . . . . . . . Combat . | . . . . . . . . . . . . . Robot Hacks Applied . | . . . . . . . . . . . . . Relay Couplers Released 6 | . . . . . . . . . . 4 . 2 Machine Destruction 6 | . . . . . . . . . . 4 . 2 Fabnet Peak Effective % . | . . . . . . . . . . . . . Robots Rewired 10 | . . . . . . . . . 9 1 . . Allies Hacked . | . . . . . . . . . . . . . Hacks Repelled . | . . . . . . . . . . . . . Allies | -11 -10 -9 -8 -7 -7 -7 -6 -5 -5 -4 -3 -3 -------- Run | Jun Mat Mat Mat Fac Low Low Fac Fac Ext Fac Res Tes Total Allies 15 | . 1 . . . . . 3 . 10 1 . . Largest Group 6 | . 1 1 . . . . 3 . 6 1 . . Highest-Rated Group 179 | . 10 10 . . . . 93 . 179 152 . . Highest-Rated Ally 159 | . 10 10 . . . . 31 . 159 152 . . Total Orders . | . . . . . . . . . . . . . Ally Attacks 85 | . . . . . . . 22 . 58 5 . . Total Damage 1752 | . . . . . . . 360 . 1251 141 . . Kills 10 | . . . . . . . 3 . 7 . . . Allies Corrupted . | . . . . . . . . . . . . . Allies Melted . | . . . . . . . . . . . . . Intel | -11 -10 -9 -8 -7 -7 -7 -6 -5 -5 -4 -3 -3 ------- Run | Jun Mat Mat Mat Fac Low Low Fac Fac Ext Fac Res Tes Robot Analysis Total . | . . . . . . . . . . . . . Derelict Logs Recovered 2 | . . . . . 2 . . . . . . . Drone Launches . | . . . . . . . . . . . . . Drone Recoveries . | . . . . . . . . . . . . . Exploration | -11 -10 -9 -8 -7 -7 -7 -6 -5 -5 -4 -3 -3 ------------- Run | Jun Mat Mat Mat Fac Low Low Fac Fac Ext Fac Res Tes Turns Passed 12128 | . 1144 1180 1111 1548 627 48 2762 292 1010 941 1002 463 Spaces Moved 6707 | 1 635 742 585 1005 511 34 1357 114 362 584 630 147 Core . | . . . . . . . . . . . . . Treads 1200 | . . . . . . . 591 114 279 . 81 135 Legs 3473 | 1 635 459 142 1005 511 34 686 . . . . . Wheels 2034 | . . 283 443 . . . 80 . 83 584 549 12 Hover . | . . . . . . . . . . . . . Flight . | . . . . . . . . . . . . . Fastest Speed 90 | 120 120 90 105 120 120 120 120 160 115 115 112 130 Average Speed 137 | 120 150 110 110 133 120 120 160 186 202 116 122 163 Slowest Speed 400 | 120 190 120 190 190 190 120 400 240 320 130 166 232 Overloaded Moves . | . . . . . . . . . . . . . Propulsion Burnouts . | . . . . . . . . . . . . . Robots Hopped . | . . . . . . . . . . . . . Cave-ins Triggered . | . . . . . . . . . . . . . Exploration Rate (%) 35 | 1 96 60 62 30 62 6 35 5 44 20 19 16 Regions Visited 12 Branch Regions 4 Pre-discovered Areas 1 | . . . . . 1 . . . . . . . Known Exits Taken 6 | . 1 . 1 1 1 1 . . . . 1 . Unknown Exits Taken 6 | 1 . 1 . . . . 1 1 1 1 . . Scrap Searched 1 | . . . . . 1 . . . . . . . Spaces Dug 65 | . . 2 9 9 . . 4 . 25 12 4 . Terrain Destroyed 557 | . 11 2 31 18 21 2 157 84 103 70 17 41 Melee 40 | . . 2 9 9 . . 4 . . 12 4 . Projectile 125 | . . . . 5 . 2 51 10 10 31 13 3 AOE 391 | . 11 . 22 4 21 . 102 74 92 27 . 38 Terrain Rammed . | . . . . . . . . . . . . . Walls Destroyed . | . . . . . . . . . . . . . Machines Disabled . | . . . . . . . . . . . . . Actions | -11 -10 -9 -8 -7 -7 -7 -6 -5 -5 -4 -3 -3 --------- Run | Jun Mat Mat Mat Fac Low Low Fac Fac Ext Fac Res Tes Total 8478 | . 760 985 897 1137 521 37 1690 149 563 710 770 259 Wait 491 | . 42 118 129 21 . . 91 6 1 3 55 25 Move 6695 | . 634 741 584 1004 510 33 1356 113 361 583 629 147 Hop . | . . . . . . . . . . . . . Pick Up 163 | . 16 18 28 17 2 . 35 2 10 15 14 6 Fast Attach 62 | . 9 9 2 5 . 1 13 1 6 10 3 3 Attach 85 | . 1 4 13 2 . . 26 5 6 3 8 17 Detach 14 | . 1 1 3 1 . . 6 . . 1 1 . Swap 122 | . 10 12 35 17 4 . 21 1 4 9 9 . Drop 138 | . 11 21 22 20 3 . 23 1 6 19 12 . Fire 474 | . 34 58 66 32 2 3 91 20 39 50 34 45 Melee 82 | . . 2 14 15 . . 22 . . 12 4 13 Ram 2 | . . . 1 . . . . . . . 1 . Kick 8 | . 2 1 . 3 . . 2 . . . . . Crush 8 | . . . . . . . 4 . 1 . . 3 Escape Stasis . | . . . . . . . . . . . . . Rewire 134 | . . . . . . . . . 129 5 . . Trap . | . . . . . . . . . . . . . Miscellaneous . | . . . . . . . . . . . . . Route ------- -11/Junkyard -10/Materials (discovered 5 exits: *Mat x3 / *Min x2) -9/Materials (discovered 2 exits: *Mat x2) -8/Materials -7/Factory (discovered 2 exits: *Low x2) -7/Lower Caves -7/Lower Caves -6/Factory (discovered 2 exits: *Fac / Low) -5/Factory -5/Extension -4/Factory -3/Research -3/Testing History --------- Turn | Location | Event 1 | -11/Junkyard | Discovered new exit (range 0) 1 | -11/Junkyard | Entered Materials 115 | -10/Materials | Discovered new exit (range 16) 203 | -10/Materials | Discovered new exit (range 8) 304 | -10/Materials | Discovered new exit (range 10) 317 | -10/Materials | Build established: Mutant 585 | -10/Materials | Discovered new exit (range 13) 960 | -10/Materials | Discovered new exit (range 9) 1095 | -10/Materials | Identified exit to Mines 1141 | -10/Materials | Identified exit to Materials 1145 | -10/Materials | Entered another Materials area 1145 | -9/Materials | Accompanied by 1 ally 1145 | -9/Materials | Evolved 2 slots: Propulsion x2 1441 | -9/Materials | Repaired Katana 1908 | -9/Materials | Discovered new exit (range 15) 2301 | -9/Materials | Discovered new exit (range 16) 2325 | -9/Materials | Entered another Materials area 2325 | -8/Materials | Evolved 2 slots: Utility x2 2547 | -8/Materials | Lost 3 parts (1u2w) 3073 | -8/Materials | Discovered new exit (range 15) 3192 | -8/Materials | Identified exit to Factory 3436 | -8/Materials | Entered Factory 3436 | -7/Factory | Evolved 2 slots: Utility x2 4506 | -7/Factory | Discovered new exit (range 6) 4531 | -7/Factory | Identified exit to Lower Caves 4962 | -7/Factory | Discovered exit to Lower Caves (range 12) 4984 | -7/Factory | Entered Lower Caves 5260 | -7/Lower Caves | Discovered new exit (range 9) 5269 | -7/Lower Caves | Identified exit to Lower Caves 5611 | -7/Lower Caves | Entered another Lower Caves area 5641 | -7/Lower Caves | Discovered new exit (range 15) 5656 | -7/Lower Caves | Identified exit to Factory 5659 | -7/Lower Caves | Entered Factory 5659 | -6/Factory | Evolved 2 slots: Weapon x2 5660 | -6/Factory | Identified exit to Lower Caves 5968 | -6/Factory | Lost 3 parts (1n2u) 6120 | -6/Factory | Lost 3 parts (2u1w) 6416 | -6/Factory | Lost 9 parts (2n4u3w) 6721 | -6/Factory | Destroyed 9 combat bots 7179 | -6/Factory | Build established: Tank 8406 | -6/Factory | System corruption reached 10% 8410 | -6/Factory | Discovered new exit (range 9) 8421 | -6/Factory | Entered another Factory area 8421 | -5/Factory | Evolved 2 slots: Power x1, Utility x1 8704 | -5/Factory | Discovered new exit (range 6) 8713 | -5/Factory | Entered Extension 9013 | -5/Extension | First assault squad dispatched 9195 | -5/Extension | Lost 4 parts (1p1n1u1w) 9459 | -5/Extension | Build established: Scavenger-Mutant 9487 | -5/Extension | Spotted B-75 Beast 9528 | -5/Extension | Energy Cycler disabled 9528 | -5/Extension | Rescued a captive Derelict 9530 | -5/Extension | Rescued a captive Derelict 9532 | -5/Extension | Rescued a captive Derelict 9535 | -5/Extension | Rescued a captive Derelict 9595 | -5/Extension | Rescued A7 9620 | -5/Extension | Destroyed B-75 Beast 9629 | -5/Extension | Discovered new exit (range 15) 9650 | -5/Extension | Lost 4 parts (4u) 9723 | -5/Extension | Entered Factory 9723 | -4/Factory | Accompanied by 1 ally (A7) 9723 | -4/Factory | Evolved 2 slots: Utility x2 9911 | -4/Factory | Lost 4 parts (2u2w) 9977 | -4/Factory | Build established: Scavenger-Tank 10223 | -4/Factory | First assault squad dispatched 10516 | -4/Factory | Lost 5 parts (1n3u1w) 10651 | -4/Factory | Discovered new exit (range 5) 10664 | -4/Factory | Entered Research 10664 | -3/Research | Evolved 2 slots: Propulsion x2 11009 | -3/Research | System corruption reached 10% 11042 | -3/Research | Lost 4 parts (1n3u) 11262 | -3/Research | Found Antimissile System 11394 | -3/Research | Found Fusion Bomb Launcher 11448 | -3/Research | Build established: Gunner 11644 | -3/Research | Discovered new exit (range 13) 11664 | -3/Research | Identified exit to Testing 11666 | -3/Research | Entered Testing 11717 | -3/Testing | Spotted PY-WI97YV5UPG 11749 | -3/Testing | Destroyed PY-WI97YV5UPG 11765 | -3/Testing | Build established: Scavenger-Gunner 11770 | -3/Testing | Lost 4 parts (2u2w) 11771 | -3/Testing | Found Prototype Processor 11903 | -3/Testing | Lost 8 parts (2p4u2w) 11961 | -3/Testing | Spotted Alpha 7 11983 | -3/Testing | Garrison activated, responded to threat 12047 | -3/Testing | Core integrity fell below 50% 12056 | -3/Testing | System corruption reached 30% 12056 | -3/Testing | Identified Exp. Targeting Computer 12099 | -3/Testing | Core integrity fell below 20% 12129 | -3/Testing | Destroyed by Alpha 7 with Multirail Last Messages --------------- 12123_ Fusion Bomb intercepted. 12124_ U-05 Engineer lays Concrete. 12125_ M-36 Artificer fits Backup Power VII on Alpha 7. 12125_ U-05 Engineer lays Concrete. 12125_ Fusion Bomb intercepted. 12126_ Adv. Signal Interpreter destroyed. 12126_ Penetrated by Slug. 12127_ U-05 Engineer lays Concrete. 12127_ K-01 Serf collects debris. 12127_ Destroyed Flexi-carbon Leg. 12127_ Force Lance destroyed. 12127_ Destroyed Force Lance. 12127_ Imp. Targeting Computer destroyed. 12127_ Destroyed Imp. Targeting Computer. 12127_ Fusion Bomb Launcher destroyed. 12127_ Destroyed Fusion Bomb Launcher. 12127_ Hdn. Centrium Wheel severed. 12128_ System corrupted: Matter fused (-8). 12128_ K-01 Serf collects debris. 12128_ U-05 Engineer lays Concrete. Map ----- +----------------------------------------------------+ | | | | | ?????????????????????????????????????????????????? | | ?????????????????????????????????????????????????? | | ?????????????????????????????????????????????????? | | ?????????????????????????????????????????????????? | | ?????????????????????????????????????????????????? | | ?????????????????????????????????????????????????? | | ?????????????????????????????????????????????????? | | ?????????????????????????????????????????????????? | | ?????????????????????????????????????????????????? | | ?????????????????????????????????????????????????? | | ?????????????????????????????????????????????????? | | ?????#########???????????????????????????????????? | | ?????#"""""""#???????????????????????????????????? | | ?????# """"" #???????????????????????????????????? | | #????# """" #???????????????????????????????????? | | ###### "" " "#???????????????????????????????????? | | # # #???????????????????????????????????? | | # # #???????????????????????????????????? | | # ###+#####################???????????????????? | | # # # ##??????????????????? | | / #??? #??????????????????? | | # """ """ #?????" " #??????????????????? | | # """ """ #?????" " ##?????????????????? | | # """ """ #????"" @ #?????????????????? | | # # l #?????????????????? | | # ###+#+## g #?????????????????? | | # = #?# = #?????????????????? | | # ! #?# = 7 ????????????????? | | # #?# """ "% %m ??????????????? | | ### #?# ""=g"""g = #????????????? | | ##+##### #?# ""[=!= %[= #????????????? | | # #?# """%""" k= #????????????? | | # ###| """% "ku#=% #????????????? | | + """%% # #????????????? | | # """= %# #????????????? | | # + % ??????????????? | | # # ???????????????? | | # ###/+########## %??????????????? | | # #?# #?????????? ???????????????? | | # #?T ??????????? ???????????????? | | ######## ## ???????????? ? ????????????????? | | ???????# ### ???????????????????????????????? | | ???????# #?#]]]???????????????????????????????? | | ???????# #?####???????????????????????????????? | | ???????# #????????????????????????????????????? | | ???????# ?????????????????????????????????????? | | ???????# ?????????????????????????????????????? | | ???????# ?????????????????????????????????????? | +----------------------------------------------------+ Best States ------------- Heat Dissipation 89 Energy Generation 49 Energy Capacity 660 Matter Stores 380 Matter Capacity 500 Sight Range 16 Robot Scan Range 15 Terrain Scan Density 10 ECM Strength 2 Jamming Range 16 Power Amplification 30 Base Temperature (-) 200 Armor Coverage 1050 Resistance: KI 30 Resistance: EX 50 Propulsion Shielding 66 Weapon Shielding 66 Phase Shifting 10 Evasion (%) 55 Targeting Accuracy 12 Recoil Reduction 6 Energy Filtering 30 Kinecelleration 40 Item Schematics ----------------- None Robot Schematics ------------------ None Fabricated ------------ Nothing Alien Tech Used ----------------- None Achievements -------------- Ooh, Shiny! Preemptive Strike Prison Break Challenges ------------ None Game ------ Seed TrackerRemoteBay Manual? 0 Play Time 03:32:00 Cumulative 73.7 hours Start 2023.12.18 @ 12:44:23 End 2023.12.19 @ 22:31:33 Sessions 5 Manual Loads 0 Difficulty Rogue Special Mode None Game No. 71 Rogue 71 Adventurer 0 Explorer 0 Win Type - Total 0 Types 0/0/0/0/0/0/0/0/0 Lore% 32 Gallery% 41 Achievement% 33 Wizard Run 0 Options --------- ASCII 0 Keyboard 0 Movement Numpad Keybinds 0 Fullscreen 1 Font 24/Proggy Map View 113x50 Tactical HUD 1 Map Filters NONE Filters NONE Steam 1 RUN: d7f6ef79-1fb5-46fa-b03d-36d7cf50a79d